bitfinex/quotes_BTCUSD_20241023
["timestamp","ask_amount","ask_price","bid_price","bid_amount"]
[1729704702511,0.57250981,65830.0,65829.0,0.000859]
[1729704702741,0.61787732,65830.0,65829.0,0.000859]
[1729704702991,0.6470994,65830.0,65829.0,0.000859]
[1729704705625,0.6490994,65830.0,65829.0,0.000859]
[1729704706335,0.836186,65830.0,65829.0,0.000859]
[1729704706583,0.94919048,65830.0,65829.0,0.000859]
[1729704706811,0.70405261,65830.0,65829.0,0.000859]
[1729704707232,0.77203208,65830.0,65829.0,0.000859]
[1729704707448,0.70405261,65830.0,65829.0,0.000859]
[1729704707665,0.77203055,65830.0,65829.0,0.000859]
[1729704707848,0.70205261,65830.0,65829.0,0.000859]
[1729704708085,0.77202993,65830.0,65829.0,0.000859]
[1729704708299,0.77202403,65830.0,65829.0,0.000859]
[1729704708731,0.70405261,65830.0,65829.0,0.000859]
[1729704709220,0.70405261,65830.0,65829.0,0.000899]
[1729704709655,0.77001965,65830.0,65829.0,0.000899]
[1729704710113,0.80454962,65830.0,65829.0,0.000899]
[1729704710350,0.89528465,65830.0,65829.0,0.000899]
[1729704710638,1.07437125,65830.0,65829.0,0.000899]
[1729704710888,0.89728465,65830.0,65829.0,0.000899]
[1729704711119,0.5111022,65820.0,65819.0,0.001718]
[1729704711352,0.92380601,65820.0,65819.0,0.001718]
[1729704713914,0.92380601,65820.0,65819.0,0.001758]
[1729704720742,0.93380601,65820.0,65819.0,0.001758]
[1729704721454,0.75671941,65820.0,65819.0,0.001758]
[1729704721689,0.93380601,65820.0,65819.0,0.001758]
[1729704721914,1.03616007,65820.0,65819.0,0.001758]
[1729704722364,1.49195007,65820.0,65819.0,0.001758]
[1729704724303,1.49395007,65820.0,65819.0,0.001758]
[1729704725942,1.49195007,65820.0,65819.0,0.001758]
[1729704726598,1.38959601,65820.0,65819.0,0.001758]
[1729704726834,1.38959601,65820.0,65819.0,0.011758]
[1729704727962,1.21250941,65820.0,65819.0,0.011758]
[1729704728168,1.38959601,65820.0,65819.0,0.011758]
[1729704729026,1.03542281,65820.0,65819.0,0.011758]
[1729704729237,1.38959601,65820.0,65819.0,0.011758]
[1729704729757,1.21250941,65820.0,65819.0,0.011758]
[1729704729768,1.02800941,65820.0,65819.0,0.011758]
[1729704730410,1.07810819,65820.0,65819.0,0.021758]
[1729704731488,1.228612,65820.0,65819.0,0.021758]
[1729704732373,1.07810819,65820.0,65819.0,0.021758]
[1729704733012,1.08010819,65820.0,65819.0,0.021758]
[1729704733232,1.26770819,65820.0,65819.0,0.021758]
[1729704733690,1.38130088,65820.0,65819.0,0.021758]
[1729704733904,1.37930088,65820.0,65819.0,0.021758]
[1729704734115,1.416212,65820.0,65819.0,0.021758]
[1729704734326,1.46313611,65820.0,65819.0,0.021758]
[1729704734790,1.5767288,65820.0,65819.0,0.021758]
[1729704735013,1.46313611,65820.0,65819.0,0.021758]
[1729704735217,1.56313611,65820.0,65819.0,0.021758]
[1729704735433,1.6767288,65820.0,65819.0,0.021758]
[1729704736316,1.69112747,65820.0,65819.0,0.021758]
[1729704737192,1.69704696,65820.0,65819.0,0.021758]
[1729704737881,1.74227826,65820.0,65819.0,0.021758]
[1729704738531,1.74027826,65820.0,65819.0,0.021758]
[1729704738774,1.58385496,65820.0,65819.0,0.021758]
[1729704741255,1.53862366,65820.0,65819.0,0.021758]
[1729704741501,1.54062366,65820.0,65819.0,0.021758]
[1729704741960,1.60846763,65820.0,65819.0,0.021758]
[1729704742441,1.60846763,65820.0,65803.0,0.000859]
[1729704742442,0.166947,65812.0,65803.0,0.000859]
[1729704742662,0.8175631,65812.0,65803.0,0.000859]
[1729704742879,1.26955329,65812.0,65803.0,0.000859]
[1729704743333,1.27155329,65812.0,65803.0,0.000859]
[1729704744239,1.33951935,65812.0,65803.0,0.000859]
[1729704744464,1.45808045,65812.0,65803.0,0.000859]
[1729704744686,0.17758837,65794.0,65790.0,0.074642]
[1729704744954,0.0038,65793.0,65790.0,0.074642]
[1729704746072,0.0038,65796.0,65790.0,0.074642]
[1729704746508,0.0038,65796.0,65790.0,0.22664]
[1729704747214,0.0038,65796.0,65790.0,0.074642]
[1729704748845,0.17758837,65804.0,65790.0,0.07629]
[1729704749080,0.22772645,65798.0,65794.0,0.151989]
[1729704749957,0.0037997,65797.0,65794.0,0.151989]
[1729704750603,0.0037997,65797.0,65793.0,0.151991]
[1729704751254,0.0037997,65797.0,65794.0,0.151989]
[1729704751481,0.0037997,65797.0,65795.0,0.00475408]
[1729704751716,0.0037997,65797.0,65796.0,0.00475408]
[1729704752637,0.0037997,65797.0,65790.0,0.001648]
[1729704752638,0.151985,65796.0,65790.0,0.001648]
[1729704752867,0.17758837,65793.0,65791.0,0.0047543]
[1729704753117,0.00380004,65792.0,65790.0,0.001648]
[1729704753352,0.00380004,65792.0,65791.0,0.00475431]
[1729704753601,0.00361721,65792.0,65791.0,0.00475431]
[1729704753854,0.151996,65791.0,65790.0,0.001648]
[1729704754092,0.15579647,65791.0,65790.0,0.001648]
[1729704755040,0.38352292,65791.0,65790.0,0.001648]
[1729704755323,0.151996,65791.0,65790.0,0.001648]
[1729704755551,0.15579652,65791.0,65790.0,0.001648]
[1729704757699,0.38352297,65791.0,65790.0,0.001648]
[1729704757916,0.45892245,65791.0,65790.0,0.001648]
[1729704758128,0.231196,65791.0,65790.0,0.001648]
[1729704758347,0.23499667,65791.0,65790.0,0.001648]
[1729704758779,0.46272312,65791.0,65790.0,0.001648]
[1729704759003,0.61442626,65791.0,65790.0,0.001648]
[1729704759232,0.57259981,65791.0,65790.0,0.001648]
[1729704759933,0.58259981,65791.0,65790.0,0.001648]
[1729704760185,0.58459981,65791.0,65790.0,0.001648]
[1729704760418,0.87756204,65791.0,65790.0,0.001648]
[1729704760649,0.64783559,65791.0,65790.0,0.001648]
[1729704761091,0.64983559,65791.0,65790.0,0.001648]
[1729704761319,0.64783559,65791.0,65790.0,0.001648]
[1729704761565,0.64983559,65791.0,65790.0,0.001648]
[1729704761808,0.69512013,65791.0,65790.0,0.001648]
[1729704762040,0.426008,65786.0,65785.0,0.000859]
[1729704762287,0.93168855,65786.0,65785.0,0.000859]
[1729704763489,0.93368855,65786.0,65785.0,0.000859]
[1729704763702,0.75410018,65786.0,65785.0,0.000859]
[1729704778257,0.69022041,65786.0,65785.0,0.000859]
[1729704778466,0.69022041,65786.0,65785.0,0.000899]
[1729704782034,0.152008,65786.0,65785.0,0.000899]
[1729704782263,0.15580879,65786.0,65785.0,0.000899]
[1729704784406,0.33349508,65786.0,65785.0,0.000899]
[1729704784630,0.32969429,65786.0,65785.0,0.000899]
[1729704786759,0.4801981,65786.0,65785.0,0.000899]
[1729704787009,0.7511981,65786.0,65785.0,0.000899]
[1729704795141,0.7511981,65786.0,65785.0,0.000899]
[1729704799379,0.75055905,65786.0,65785.0,0.000899]
[1729704800269,0.79589551,65786.0,65785.0,0.000899]
[1729704801264,0.75055905,65786.0,65785.0,0.000899]
[1729704802001,1.07590634,65786.0,65785.0,0.000899]
[1729704802258,1.13573722,65786.0,65785.0,0.000899]
[1729704802710,0.442617,65782.0,65781.0,4e-05]
[1729704802945,1.11648146,65782.0,65781.0,4e-05]
[1729704803212,1.25252031,65782.0,65781.0,4e-05]
[1729704803481,1.40302412,65782.0,65781.0,4e-05]
[1729704803724,1.40302412,65782.0,65775.0,0.0001]
[1729704803725,0.61831729,65776.0,65775.0,0.0001]
[1729704803972,0.7688211,65776.0,65775.0,0.0001]
[1729704804215,0.81380917,65776.0,65775.0,0.0001]
[1729704804456,0.96631298,65776.0,65775.0,0.0001]
[1729704805418,0.98931298,65776.0,65775.0,0.0001]
[1729704805664,0.60504429,65764.0,65763.0,0.00086]
[1729704805906,0.7555481,65764.0,65763.0,0.00086]
[1729704806136,0.90605191,65764.0,65763.0,0.00086]
[1729704807357,0.7555481,65764.0,65763.0,0.00086]
[1729704807586,1.04323439,65764.0,65763.0,0.00086]
[1729704808042,1.13393401,65764.0,65763.0,0.00086]
[1729704808268,1.13416078,65764.0,65763.0,0.00086]
[1729704808732,1.13616078,65764.0,65763.0,0.00086]
[1729704808961,1.2187382,65764.0,65763.0,0.00086]
[1729704809193,1.28663446,65764.0,65763.0,0.00086]
[1729704809663,1.28463446,65764.0,65763.0,0.00086]
[1729704810146,0.92926188,65764.0,65763.0,0.00086]
[1729704810383,0.91079398,65764.0,65763.0,0.00086]
[1729704810620,0.91115493,65764.0,65763.0,0.00086]
[1729704811350,1.04359534,65764.0,65763.0,0.00086]
[1729704811595,0.86590905,65764.0,65763.0,0.00086]
[1729704811836,1.01641286,65764.0,65763.0,0.00086]
[1729704812055,1.01641286,65764.0,65763.0,0.0009]
[1729704812492,0.86590905,65764.0,65763.0,0.0009]
[1729704813694,0.76590905,65764.0,65763.0,0.0009]
[1729704816025,0.15208,65755.0,65753.0,0.0008]
[1729704816251,0.33357085,65754.0,65753.0,0.0008]
[1729704816508,0.32976829,65754.0,65753.0,0.0008]
[1729704819915,0.5587721,65754.0,65753.0,0.0008]
[1729704820137,0.7580721,65754.0,65753.0,0.00084]
[1729704820348,0.76243305,65754.0,65753.0,0.00084]
[1729704821409,0.77243305,65754.0,65753.0,0.00084]
[1729704821608,0.77243305,65754.0,65746.0,0.0174684]
[1729704821609,0.52183153,65747.0,65746.0,0.0174684]
[1729704821873,0.77233534,65747.0,65746.0,0.0174684]
[1729704822280,0.77433534,65747.0,65746.0,0.0174684]
[1729704822626,0.77233534,65747.0,65746.0,0.0174684]
[1729704822825,0.59464905,65747.0,65746.0,0.0174684]
[1729704823025,0.9007755,65747.0,65746.0,0.0174684]
[1729704823203,0.67304905,65747.0,65746.0,0.0174684]
[1729704823878,0.79419853,65747.0,65746.0,0.0174684]
[1729704824088,0.67304905,65747.0,65746.0,0.0174684]
[1729704824295,0.67304905,65747.0,65746.0,0.0175084]
[1729704824518,0.85073534,65747.0,65746.0,0.0175084]
[1729704824932,0.85273534,65747.0,65746.0,0.0175084]
[1729704825163,0.67304905,65747.0,65746.0,0.0175084]
[1729704825411,0.56304905,65747.0,65746.0,0.0175084]
[1729704825581,0.57304905,65747.0,65746.0,0.0175084]
[1729704826015,0.67565159,65747.0,65746.0,0.0175084]
[1729704826233,1.08106433,65747.0,65746.0,0.0175084]
[1729704826455,1.18306433,65747.0,65746.0,0.0175084]
[1729704826674,0.157114,65740.0,65739.0,4e-05]
[1729704826888,0.67615527,65740.0,65739.0,4e-05]
[1729704827116,0.89965515,65740.0,65739.0,4e-05]
[1729704827329,1.09215515,65740.0,65739.0,4e-05]
[1729704827754,1.09015515,65740.0,65739.0,4e-05]
[1729704830173,1.09015515,65740.0,65739.0,0.000863]
[1729704832310,0.7526041,65740.0,65739.0,0.000863]
[1729704832532,0.93029039,65740.0,65739.0,0.000863]
[1729704833204,0.32980029,65740.0,65739.0,0.000863]
[1729704833623,0.50748658,65740.0,65739.0,0.000863]
[1729704834460,0.50748658,65740.0,65739.0,0.000903]
[1729704835127,0.32980029,65740.0,65739.0,0.000903]
[1729704839844,0.81986781,65740.0,65739.0,0.000903]
[1729704840056,1.07806781,65740.0,65739.0,0.000903]
[1729704840263,1.53385781,65740.0,65739.0,0.000903]
[1729704841588,1.38634134,65740.0,65739.0,0.000903]
[1729704842512,1.2042941,65740.0,65739.0,0.000903]
[1729704842757,1.37698039,65740.0,65739.0,0.000903]
[1729704843468,1.38134134,65740.0,65739.0,0.000903]
[1729704844140,1.38634134,65740.0,65739.0,0.000903]
[1729704844361,1.53684515,65740.0,65739.0,0.000903]
[1729704844858,0.32982529,65729.0,65728.0,0.00086]
[1729704845086,0.4803291,65729.0,65728.0,0.00086]
[1729704846375,0.30264281,65729.0,65728.0,0.00086]
[1729704846594,0.48413354,65729.0,65728.0,0.00086]
[1729704846818,0.4803291,65729.0,65728.0,0.00086]
[1729704847043,0.52291994,65729.0,65728.0,0.00086]
[1729704847683,0.4803291,65729.0,65728.0,0.00086]
[1729704849013,0.70805555,65729.0,65728.0,0.00086]
[1729704849646,0.4803291,65729.0,65728.0,0.00086]
[1729704850121,0.70805555,65729.0,65728.0,0.00086]
[1729704850355,0.7124165,65729.0,65728.0,0.00086]
[1729704850576,0.63519386,65729.0,65728.0,0.00086]
[1729704851911,0.4803291,65729.0,65728.0,0.00086]
[1729704852383,0.32982529,65729.0,65728.0,0.00086]
[1729704852842,0.152139,65729.0,65728.0,0.00086]
[1729704853074,0.33362933,65729.0,65728.0,0.00086]
[1729704853284,0.48195529,65732.0,65728.0,0.00086]
[1729704853504,0.32982529,65729.0,65728.0,0.00086]
[1729704854149,0.17768629,65729.0,65728.0,0.00086]
[1729704854359,0.33362926,65729.0,65728.0,0.00086]
[1729704854575,0.32982529,65729.0,65728.0,0.00086]
[1729704856363,0.152135,65731.0,65728.0,0.00149905]
[1729704856580,0.15594191,65730.0,65728.0,0.00149905]
[1729704857028,0.15594191,65730.0,65728.0,0.00086]
[1729704857029,0.7394291,65729.0,65728.0,0.00086]
[1729704858376,0.53359,65740.0,65729.0,0.00063905]
[1729704858612,0.32982329,65730.0,65729.0,0.00063905]
[1729704859708,0.48194329,65734.0,65729.0,0.00063905]
[1729704859985,0.53579128,65733.0,65729.0,0.00063905]
[1729704860208,0.152135,65731.0,65729.0,0.00063905]
[1729704860463,0.00380383,65730.0,65729.0,0.00063905]
[1729704860699,0.00380383,65730.0,65728.0,0.00086]
[1729704860700,0.760022,65740.0,65735.0,0.00063905]
[1729704860921,0.45579,65740.0,65739.0,0.00063905]
[1729704862490,0.45579,65740.0,65739.0,0.15275505]
[1729704862725,0.45579,65740.0,65739.0,0.35595886]
[1729704863438,0.45579,65740.0,65739.0,0.35791909]
[1729704863676,0.001646,65746.0,65745.0,0.15274105]
[1729704864370,0.001646,65746.0,65745.0,0.15774105]
[1729704864785,0.001646,65746.0,65738.0,0.00063905]
[1729704864786,0.0803,65745.0,65738.0,0.00063905]
[1729704864989,0.17768629,65740.0,65739.0,0.00063905]
[1729704865209,0.00380325,65745.0,65742.0,0.00063905]
[1729704866064,0.00544868,65746.0,65742.0,0.00063905]
[1729704867629,0.001646,65746.0,65745.0,0.00063905]
[1729704870861,0.15754852,65746.0,65745.0,0.00063905]
[1729704871077,0.00544852,65746.0,65745.0,0.00063905]
[1729704873301,0.00544852,65746.0,65745.0,0.00067905]
[1729704876766,0.001646,65746.0,65745.0,0.30828486]
[1729704876992,0.001646,65746.0,65745.0,0.61897115]
[1729704877197,0.001646,65746.0,65745.0,0.62568853]
[1729704877622,0.001646,65746.0,65745.0,0.63329889]
[1729704877849,0.001646,65746.0,65745.0,0.6237283]
[1729704878059,0.001646,65746.0,65745.0,0.42304201]
[1729704878266,0.001646,65746.0,65745.0,0.41828486]
[1729704879553,0.001646,65746.0,65745.0,0.41924729]
[1729704879792,0.001646,65746.0,65745.0,0.25874348]
[1729704880246,0.001646,65746.0,65745.0,0.26374348]
[1729704880891,0.001646,65746.0,65745.0,0.4222723]
[1729704881112,0.001646,65746.0,65745.0,0.41924729]
[1729704881325,0.001646,65746.0,65745.0,0.42424729]
[1729704881554,0.001646,65746.0,65745.0,0.43096445]
[1729704881768,0.001646,65746.0,65745.0,0.42900422]
[1729704882187,0.001646,65746.0,65745.0,0.43096445]
[1729704882403,0.001646,65746.0,65745.0,0.42900422]
[1729704882624,0.001646,65746.0,65745.0,0.42424729]
[1729704883111,0.001646,65746.0,65745.0,0.45396431]
[1729704883340,0.001646,65746.0,65745.0,0.45200408]
[1729704886418,0.001646,65746.0,65745.0,0.45200413]
[1729704887094,0.001646,65746.0,65745.0,0.42900413]
[1729704888471,0.001646,65746.0,65745.0,0.43661508]
[1729704889859,0.001646,65746.0,65745.0,0.42424729]
[1729704890085,0.001646,65746.0,65745.0,0.43661515]
[1729704893430,0.001646,65746.0,65745.0,0.42424729]
[1729704893653,0.001646,65746.0,65745.0,0.43661538]
[1729704896899,0.001646,65746.0,65745.0,0.01304714]
[1729704897139,0.63567694,65746.0,65745.0,0.00479765]
[1729704897392,0.59230859,65746.0,65745.0,4e-05]
[1729704899396,0.59230859,65746.0,65742.0,4e-05]
[1729704899397,0.15646795,65743.0,65742.0,4e-05]
[1729704899630,0.75406178,65743.0,65742.0,4e-05]
[1729704899865,0.75025805,65743.0,65742.0,4e-05]
[1729704901306,0.92794434,65743.0,65742.0,4e-05]
[1729704901537,0.75025805,65743.0,65742.0,4e-05]
[1729704902515,0.7458971,65743.0,65742.0,4e-05]
[1729704902998,0.92794434,65743.0,65742.0,4e-05]
[1729704906153,0.92794434,65743.0,65742.0,8e-05]
[1729704907063,1.07844815,65743.0,65742.0,8e-05]
[1729704907503,0.75025805,65743.0,65742.0,8e-05]
[1729704911015,0.92794434,65743.0,65742.0,8e-05]
[1729704912402,0.92794434,65743.0,65742.0,0.000903]
[1729704913277,1.15567079,65743.0,65742.0,0.000903]
[1729704913527,0.92994434,65743.0,65742.0,0.000903]
[1729704913754,1.08044815,65743.0,65742.0,0.000903]
[1729704914387,0.92794434,65743.0,65742.0,0.000903]
[1729704920481,0.152139,65729.0,65728.0,0.00086]
[1729704920710,0.61052529,65729.0,65728.0,0.00086]
[1729704925393,0.7610291,65729.0,65728.0,0.00086]
[1729704928263,0.84991711,65729.0,65728.0,0.00086]
[1729704928979,0.7610291,65729.0,65728.0,0.00086]
[1729704930203,0.17768629,65729.0,65728.0,0.00086]
[1729704930443,0.32982529,65729.0,65728.0,0.00086]
[1729704931415,0.6683291,65729.0,65728.0,0.00086]
[1729704932182,0.6853332,65729.0,65728.0,0.00086]
[1729704932403,0.91733701,65729.0,65728.0,0.00086]
[1729704935695,0.7668332,65729.0,65728.0,0.00086]
[1729704940437,0.81698951,65729.0,65728.0,0.00086]
[1729704940679,0.82135046,65729.0,65728.0,0.00086]
[1729704949524,0.86654297,65729.0,65728.0,0.00086]
[1729704952407,0.86653292,65729.0,65728.0,0.00086]
[1729704953368,1.01703673,65729.0,65728.0,0.00086]
[1729704954286,0.86653292,65729.0,65728.0,0.00086]
[1729704956215,0.82135046,65729.0,65728.0,0.00086]
[1729704957607,0.82335046,65729.0,65728.0,0.00086]
[1729704957844,0.86819962,65729.0,65728.0,0.00086]
[1729704958098,0.98212092,65729.0,65728.0,0.00086]
[1729704958325,1.24558088,65729.0,65728.0,0.00086]
[1729704958567,1.13165958,65729.0,65728.0,0.00086]
[1729704959008,1.24558088,65729.0,65728.0,0.00086]
[1729704959235,1.13262473,65729.0,65728.0,0.00086]
[1729704959457,1.24262473,65729.0,65728.0,0.00086]
[1729704960396,1.37817212,65729.0,65728.0,0.00086]
[1729704960624,1.37817212,65729.0,65720.0,4e-05]
[1729704960625,0.15651895,65721.0,65720.0,4e-05]
[1729704960888,0.8556193,65721.0,65720.0,4e-05]
[1729704961133,0.95790988,65721.0,65720.0,4e-05]
[1729704961599,0.95788453,65721.0,65720.0,4e-05]
[1729704962070,0.86743839,65721.0,65720.0,4e-05]
[1729704962314,0.99251158,65721.0,65720.0,4e-05]
[1729704962539,1.0829848,65721.0,65720.0,4e-05]
[1729704963213,1.08897357,65721.0,65720.0,4e-05]
[1729704963435,0.99850035,65721.0,65720.0,4e-05]
[1729704963653,0.2627,65713.0,65701.0,0.00063905]
[1729704963877,0.1139213,65703.0,65701.0,0.00063905]
[1729704964116,0.2661233,65703.0,65701.0,0.00063905]
[1729704964344,0.1139213,65703.0,65701.0,0.00063905]
[1729704964590,0.01562387,65702.0,65701.0,0.00063905]
[1729704966944,0.65836847,65702.0,65701.0,0.00063905]
[1729704967177,0.15656495,65701.0,65690.0,4e-05]
[1729704967409,0.31087466,65701.0,65690.0,4e-05]
[1729704967644,0.32246127,65701.0,65690.0,4e-05]
[1729704968102,0.47296508,65701.0,65690.0,4e-05]
[1729704968356,0.70069153,65701.0,65690.0,4e-05]
[1729704968583,0.54936508,65701.0,65690.0,4e-05]
[1729704971186,0.50842162,65701.0,65690.0,0.00067905]
[1729704971413,0.39450032,65701.0,65692.0,0.00063905]
[1729704971883,0.16759651,65701.0,65694.0,0.00063905]
[1729704972123,0.17140202,65701.0,65694.0,0.00063905]
[1729704972643,0.39912847,65701.0,65694.0,0.00063905]
[1729704972891,0.16759651,65701.0,65694.0,0.00063905]
[1729704973162,0.17140202,65701.0,65694.0,0.00063905]
[1729704973902,0.17140202,65701.0,65698.0,0.00063905]
[1729704973903,0.28151781,65701.0,65698.0,0.00063905]
[1729704974116,0.12931381,65701.0,65698.0,0.00063905]
[1729704974354,0.34955676,65701.0,65698.0,0.00063905]
[1729704974603,0.34575146,65701.0,65698.0,0.00063905]
[1729704974846,0.19354746,65701.0,65698.0,0.00063905]
[1729704975083,0.34575146,65701.0,65698.0,0.00063905]
[1729704975332,0.19354746,65701.0,65699.0,0.00063905]
[1729704975560,0.34955668,65701.0,65699.0,0.00063905]
[1729704975804,0.34575146,65701.0,65699.0,0.00063905]
[1729704976039,0.19354746,65701.0,65699.0,0.00063905]
[1729704976527,0.34575146,65701.0,65699.0,0.00063905]
[1729704976760,0.01539251,65701.0,65700.0,0.04847905]
[1729704977015,0.01539251,65701.0,65700.0,0.00077905]
[1729704977260,0.17815495,65702.0,65700.0,0.00077905]
[1729704977504,0.01535011,65701.0,65700.0,0.00077905]
[1729704978699,0.17815495,65708.0,65700.0,0.00077905]
[1729704978936,0.22772645,65709.0,65708.0,0.00063905]
[1729704979190,0.22772645,65719.0,65717.0,0.00063905]
[1729704979419,0.17815495,65718.0,65717.0,0.00063905]
[1729704979658,0.387249,65724.0,65717.0,0.00063905]
[1729704979659,0.17815495,65722.0,65717.0,0.00063905]
[1729704979892,0.17815495,65722.0,65721.0,0.00063905]
[1729704979893,0.33031095,65722.0,65721.0,0.00063905]
[1729704980364,0.17815495,65722.0,65721.0,0.00063905]
[1729704981078,0.33031095,65722.0,65721.0,0.00063905]
[1729704981304,0.17815495,65722.0,65719.0,0.00063905]
[1729704981530,0.33031095,65722.0,65721.0,0.00063905]
[1729704982216,0.17815495,65722.0,65721.0,0.00063905]
[1729704982698,0.33031095,65722.0,65721.0,0.00063905]
[1729704984140,0.17815495,65722.0,65721.0,0.00063905]
[1729704984631,0.19360614,65722.0,65721.0,0.00063905]
[1729704985788,0.34576214,65722.0,65721.0,0.00063905]
[1729704986481,0.15217,65716.0,65714.0,0.00063905]
[1729704986728,0.152176,65713.0,65712.0,0.00063905]
[1729704986960,0.152176,65713.0,65700.0,0.047163]
[1729704986961,0.48250795,65713.0,65708.0,0.00063905]
[1729704987192,0.33034095,65709.0,65708.0,0.00063905]
[1729704987421,0.17815495,65709.0,65708.0,0.00063905]
[1729704987849,0.19360348,65709.0,65708.0,0.00063905]
[1729704989357,0.34578948,65709.0,65708.0,0.00063905]
[1729704989578,0.34578948,65709.0,65704.0,0.00063905]
[1729704989579,0.152195,65705.0,65704.0,0.00063905]
[1729704989823,0.17815495,65705.0,65704.0,0.00063905]
[1729704990062,0.33034995,65705.0,65704.0,0.00063905]
[1729704990289,0.34579848,65705.0,65704.0,0.00063905]
[1729704990783,0.152204,65701.0,65700.0,0.000963]
[1729704991017,0.33035895,65701.0,65700.0,0.000963]
[1729704991240,0.34581496,65701.0,65700.0,0.000963]
[1729704992440,0.60596991,65701.0,65700.0,0.000963]
[1729704992682,0.77906991,65701.0,65700.0,0.000963]
[1729704993619,1.08007753,65701.0,65700.0,0.000963]
[1729704993848,1.08443848,65701.0,65700.0,0.000963]
[1729704994074,0.57762477,65701.0,65700.0,0.000963]
[1729704994285,0.93393467,65701.0,65700.0,0.000963]
[1729704994752,0.75141877,65701.0,65700.0,0.000963]
[1729704995002,0.92957372,65701.0,65700.0,0.000963]
[1729704997624,0.77906991,65701.0,65700.0,0.000963]
[1729704998505,0.19361096,65701.0,65700.0,0.00160205]
[1729705000992,0.01545601,65701.0,65700.0,0.00160205]
[1729705001465,0.17815495,65702.0,65700.0,0.00160205]
[1729705001685,0.01534098,65701.0,65700.0,0.00160205]
[1729705003495,0.17815495,65709.0,65708.0,0.00063905]
[1729705004633,0.22772645,65717.0,65714.0,0.00063905]
[1729705004929,0.17815495,65715.0,65714.0,0.00063905]
[1729705005155,0.33032695,65715.0,65714.0,0.00063905]
[1729705006096,0.17815495,65715.0,65714.0,0.00063905]
[1729705006547,0.001646,65719.0,65714.0,0.00063905]
[1729705006788,0.17815495,65715.0,65714.0,0.00063905]
[1729705008530,0.001646,65719.0,65718.0,0.00063905]
[1729705008531,0.17980095,65719.0,65718.0,0.00063905]
[1729705008803,0.001646,65719.0,65718.0,0.15280405]
[1729705009034,0.001646,65719.0,65718.0,0.00063905]
[1729705009494,0.001646,65719.0,65718.0,0.15280405]
[1729705009751,0.001646,65719.0,65718.0,0.31830786]
[1729705011633,0.001646,65719.0,65718.0,0.62142304]
[1729705011872,0.001646,65719.0,65718.0,0.62618211]
[1729705012108,0.001646,65719.0,65718.0,0.44802716]
[1729705012364,0.001646,65719.0,65718.0,0.62618211]
[1729705012832,0.001646,65719.0,65718.0,0.67388211]
[1729705013832,0.001646,65719.0,65718.0,0.66912304]
[1729705014058,0.001646,65719.0,65718.0,0.67388171]
[1729705017356,0.001646,65719.0,65718.0,0.66912304]
[1729705017598,0.001646,65719.0,65718.0,0.67388168]
[1729705018109,0.001646,65722.0,65721.0,0.29275728]
[1729705018368,0.001646,65722.0,65721.0,0.49874646]
[1729705018608,0.001646,65722.0,65721.0,0.67387468]
[1729705018834,0.001646,65722.0,65721.0,0.68148777]
[1729705019540,0.001646,65722.0,65721.0,0.72687596]
[1729705019745,0.001646,65722.0,65721.0,0.76807596]
[1729705019961,0.001646,65722.0,65721.0,0.72268777]
[1729705020189,0.001646,65722.0,65721.0,0.79077005]
[1729705020459,0.001646,65722.0,65721.0,1.30679305]
[1729705020678,0.001646,65722.0,65721.0,1.22633904]
[1729705020895,0.001646,65722.0,65721.0,1.30677449]
[1729705021135,0.001646,65722.0,65721.0,0.54457137]
[1729705021564,0.001646,65722.0,65721.0,0.61848844]
[1729705021806,0.001646,65722.0,65721.0,0.55048543]
[1729705022044,0.001646,65722.0,65721.0,0.61848844]
[1729705022472,0.001646,65722.0,65721.0,0.55048543]
[1729705023344,0.001646,65722.0,65721.0,0.55048569]
[1729705023768,0.001646,65722.0,65721.0,0.64048569]
[1729705023978,0.001646,65722.0,65721.0,1.01588369]
[1729705024224,0.001646,65722.0,65721.0,1.0838867]
[1729705024444,0.001646,65722.0,65721.0,1.08386151]
[1729705024921,0.001646,65724.0,65723.0,0.16975228]
[1729705025145,0.001644,65739.0,65734.0,0.47088223]
[1729705025365,0.22167095,65735.0,65734.0,3.10032294]
[1729705025584,0.001644,65739.0,65738.0,0.29271828]
[1729705025804,0.001644,65739.0,65738.0,0.67141207]
[1729705026279,0.001644,65739.0,65738.0,0.71503494]
[1729705026501,0.001644,65739.0,65738.0,0.76028996]
[1729705027399,0.001644,65739.0,65738.0,0.72110638]
[1729705028318,0.001644,65739.0,65738.0,0.72114638]
[1729705029412,0.001644,65739.0,65738.0,0.89930133]
[1729705029893,0.001644,65739.0,65738.0,0.72114638]
[1729705031987,0.001644,65739.0,65738.0,0.63224638]
[1729705033112,0.001644,65739.0,65738.0,0.63832838]
[1729705033336,0.001644,65739.0,65738.0,0.81648333]
[1729705033584,0.001644,65739.0,65738.0,1.56111633]
[1729705033814,0.001644,65739.0,65738.0,1.56872719]
[1729705034274,0.001646,65746.0,65744.0,0.01759928]
[1729705034532,0.001646,65746.0,65744.0,0.6720858]
[1729705034750,0.22772645,65758.0,65746.0,0.29269928]
[1729705034972,0.22772645,65758.0,65746.0,1.69093857]
[1729705035225,0.18706845,65751.0,65750.0,0.16969028]
[1729705035472,0.22772645,65758.0,65757.0,0.01759928]
[1729705035760,0.22772645,65758.0,65757.0,0.62608968]
[1729705035988,0.22772645,65765.0,65763.0,0.01759928]
[1729705036214,0.22772645,65765.0,65763.0,0.62607568]
[1729705036444,0.22772645,65765.0,65763.0,0.62411545]
[1729705036879,0.0793,65769.0,65763.0,0.62607568]
[1729705037077,0.0793,65769.0,65763.0,0.62411545]
[1729705037335,0.0793,65769.0,65763.0,0.63172453]
[1729705037584,0.0793,65769.0,65763.0,0.63368476]
[1729705037815,0.0793,65769.0,65763.0,0.62131904]
[1729705038043,0.0793,65769.0,65763.0,0.63368379]
[1729705038270,0.0793,65769.0,65763.0,0.63961391]
[1729705038498,0.1803,65771.0,65763.0,0.63961391]
[1729705040307,0.1803,65771.0,65763.0,0.63765368]
[1729705041649,0.1803,65771.0,65763.0,0.62528893]
[1729705041871,0.1803,65771.0,65763.0,0.63765347]
[1729705042102,0.1803,65771.0,65763.0,0.6396137]
[1729705042549,0.31032645,65773.0,65763.0,0.6396137]
[1729705042793,0.000323,65764.0,65763.0,0.6396137]
[1729705045360,0.000323,65764.0,65763.0,0.43649852]
[1729705045361,0.177123,65764.0,65763.0,0.43649852]
[1729705045820,0.000323,65764.0,65763.0,0.43845875]
[1729705046733,0.000323,65764.0,65763.0,0.46145875]
[1729705047412,0.000323,65764.0,65763.0,0.45949852]